bitfinex/quotes_ETHUSD_20250422
["timestamp","ask_amount","ask_price","bid_price","bid_amount"]
[1745351641588,0.8195,1692.0,1691.7,0.55]
[1745351641793,11.31816918,1692.3,1691.8,5.95121114]
[1745351641967,0.8195,1692.2,1691.9,0.59512111]
[1745351642149,0.8195,1692.2,1692.0,5.272]
[1745351643185,5.40889369,1692.3,1692.0,5.272]
[1745351643498,0.8195,1692.4,1692.0,6.048]
[1745351643654,0.8195,1692.4,1692.1,0.66389349]
[1745351643989,5.90915303,1692.3,1692.1,0.6048]
[1745351644287,6.72854665,1692.4,1692.0,5.272]
[1745351644755,5.90922192,1692.3,1692.0,5.272]
[1745351645085,5.90914628,1692.3,1692.0,5.272]
[1745351645282,0.8195,1692.4,1692.0,5.272]
[1745351645684,5.90949256,1692.2,1691.9,0.59512111]
[1745351645887,6.72899256,1692.2,1692.1,5.3]
[1745351646100,0.8195,1692.2,1692.1,5.3]
[1745351647001,0.8195,1692.2,1692.1,5.83]
[1745351650218,0.8195,1692.4,1692.1,5.83]
[1745351650412,0.8195,1692.8,1692.4,0.55]
[1745351650593,0.8195,1692.8,1692.5,5.35807538]
[1745351650773,0.8195,1692.8,1692.5,5.299]
[1745351650968,0.8195,1692.8,1692.5,7.7766]
[1745351651404,6.72700675,1692.8,1692.5,7.7766]
[1745351651608,0.8195,1692.8,1692.6,5.299]
[1745351651777,6.70192139,1692.7,1692.6,5.299]
[1745351653302,12.11081508,1692.7,1692.6,5.299]
[1745351656027,12.54879227,1692.7,1692.6,5.299]
[1745351656233,14.39442453,1692.7,1692.6,5.299]
[1745351656599,5.90841949,1692.5,1692.4,19.477]
[1745351656799,6.70261949,1692.5,1692.4,24.776]
[1745351657718,0.7942,1692.5,1692.4,24.776]
[1745351658324,6.70261949,1692.5,1692.4,24.776]
[1745351659734,5.90841949,1692.5,1692.4,24.776]
[1745351660236,5.908105,1692.6,1692.4,24.776]
[1745351660802,5.90841949,1692.5,1692.4,24.776]
[1745351662234,12.13826046,1692.7,1692.4,24.776]
[1745351662460,6.23039369,1692.7,1692.4,27.2536]
[1745351662666,12.13812101,1692.7,1692.4,27.2536]
[1745351663966,6.23039369,1692.7,1692.4,19.477]
[1745351664128,5.9084144,1692.6,1692.5,5.299]
[1745351666263,5.90841949,1692.5,1692.4,19.477]
[1745351666424,5.90841949,1692.5,1692.4,24.775]
[1745351667633,11.8167267,1692.6,1692.4,24.775]
[1745351667955,5.90841949,1692.5,1692.4,24.775]
[1745351670368,6.98862756,1692.7,1692.4,24.775]
[1745351670568,12.89645735,1692.7,1692.4,27.2525]
[1745351670773,18.80441849,1692.7,1692.4,28.0632]
[1745351671063,5.90819109,1692.6,1692.4,28.0632]
[1745351671438,5.90819109,1692.6,1692.4,27.2525]
[1745351672535,12.44630427,1692.7,1692.4,27.2525]
[1745351672846,18.35429982,1692.7,1692.4,27.2525]
[1745351673268,12.44630427,1692.7,1692.4,27.2525]
[1745351673975,6.53847448,1692.7,1692.4,27.2525]
[1745351674151,6.53847448,1692.7,1692.5,2.72525]
[1745351674341,12.44633213,1692.7,1692.5,2.72525]
[1745351675183,5.90807042,1692.6,1692.5,2.72525]
[1745351675332,12.44633213,1692.7,1692.4,24.775]
[1745351679792,6.2159626,1692.7,1692.5,0.7881]
[1745351679954,0.30808079,1692.7,1692.6,5.251]
[1745351680345,0.3979811,1693.0,1692.8,0.7881]
[1745351680553,0.3979811,1693.0,1692.8,6.7983759]
[1745351680775,0.3979811,1693.0,1692.9,0.67983759]
[1745351681578,0.3979811,1693.0,1692.9,5.251]
[1745351684610,0.3979811,1693.0,1692.7,0.7881]
[1745351684813,0.3979811,1693.0,1692.9,5.251]
[1745351687817,0.3979811,1693.0,1692.9,0.7881]
[1745351688317,0.3979811,1693.0,1692.9,6.0381]
[1745351688519,0.3979811,1693.0,1692.9,1.39191]
[1745351688681,0.3979811,1693.0,1692.9,6.0381]
[1745351689509,0.3979811,1693.0,1692.9,0.7881]
[1745351689679,0.3979811,1693.0,1692.9,6.0381]
[1745351690287,5.90800018,1692.7,1692.4,0.7881]
[1745351690603,11.75808593,1693.0,1692.4,6.0381]
[1745351690604,6.68145475,1692.9,1692.4,6.0381]
[1745351690910,5.90749303,1692.8,1692.5,0.60381]
[1745351691319,6.68145475,1692.9,1692.5,0.60381]
[1745351691521,5.90737473,1692.8,1692.5,0.60381]
[1745351692036,6.68145475,1692.9,1692.5,0.60381]
[1745351692443,0.3979811,1693.0,1692.6,1.3381]
[1745351692647,0.3979811,1693.0,1692.9,7.68261583]
[1745351692954,5.95121114,1693.9,1692.9,7.68261583]
[1745351692955,5.7168507,1693.8,1693.4,0.55]
[1745351693158,0.30795701,1693.8,1693.6,2.51897657]
[1745351693450,6.18319369,1694.2,1693.7,5.25]
[1745351693451,5.90313674,1694.1,1693.7,5.25]
[1745351693655,5.90313674,1694.1,1693.6,20.2571]
[1745351693656,5.90344289,1694.0,1693.6,20.2571]
[1745351693854,6.67801098,1693.9,1693.6,20.2571]
[1745351694018,5.90420686,1693.8,1693.7,5.25]
[1745351694843,5.40889369,1694.0,1693.7,5.25]
[1745351696023,5.90403727,1693.8,1693.6,19.469]
[1745351696217,6.67800375,1693.9,1693.8,5.249]
[1745351696421,5.9040906,1693.8,1693.6,19.469]
[1745351696629,5.90423333,1693.7,1693.6,19.469]
[1745351696845,11.31312702,1693.7,1693.6,5.249]
[1745351697244,11.31312702,1693.7,1693.3,0.7881]
[1745351697431,5.90506125,1693.5,1693.4,5.249]
[1745351697863,3.7679,1693.6,1693.4,5.249]
[1745351698161,5.90493061,1693.5,1693.4,5.249]
[1745351698462,5.90588375,1693.3,1693.0,0.8162]
[1745351698621,5.90616068,1693.2,1693.1,5.249]
[1745351698823,12.57971495,1693.3,1693.1,5.249]
[1745351699247,6.67376387,1693.3,1693.1,5.249]
[1745351699449,5.90648401,1693.1,1692.7,19.464]
[1745351699656,5.90648401,1693.1,1692.8,7.1954]
[1745351699846,5.9064858,1693.1,1692.9,5.249]
[1745351700045,14.81248092,1693.2,1692.9,5.249]
[1745351700275,5.40889369,1693.6,1693.0,7.27871114]
[1745351700433,12.12131558,1693.6,1693.0,0.83657078]
[1745351700628,12.12138029,1693.6,1693.0,0.7775]
[1745351700856,5.90533805,1693.4,1693.0,1.38015]
[1745351701070,5.90673931,1693.0,1692.6,0.7775]
[1745351701230,11.31536915,1693.1,1692.7,5.249]
[1745351701430,11.31522113,1693.1,1692.7,5.249]
[1745351701665,11.31522113,1693.1,1692.6,0.7775]
[1745351701666,5.9070591,1692.9,1692.6,0.7775]
[1745351701964,5.9070591,1692.9,1692.7,5.249]
[1745351702140,11.81440635,1692.9,1692.6,0.7775]
[1745351702465,5.90785908,1692.7,1692.3,5.249]
[1745351702669,0.8077,1692.8,1692.3,5.249]
[1745351702833,6.71508318,1692.8,1692.3,5.249]
[1745351703371,5.40889369,1692.9,1692.4,7.27871114]
[1745351703566,5.40889369,1692.9,1692.4,7.33778165]
[1745351703764,5.40889369,1692.9,1692.5,0.73377817]
[1745351705064,5.40889369,1693.3,1692.8,5.95121114]
[1745351705261,5.40889369,1693.3,1693.0,0.7775]
[1745351705429,11.31399931,1693.5,1693.0,0.7775]
[1745351705872,0.8077,1693.4,1692.7,19.467]
[1745351706057,5.90679966,1693.0,1692.8,5.25]
[1745351706268,5.90702345,1692.9,1692.8,5.25]
[1745351706446,12.12339335,1693.0,1692.8,5.25]
[1745351706851,6.21659369,1693.0,1692.8,5.25]
[1745351707051,12.12340905,1693.0,1692.8,5.25]
[1745351707355,5.90702345,1692.9,1692.8,5.25]
[1745351707990,12.12340905,1693.0,1692.8,5.25]
[1745351708483,5.90702345,1692.9,1692.8,5.25]
[1745351708986,18.33842398,1693.0,1692.8,5.25]
[1745351709470,5.7169182,1693.0,1692.8,5.25]
[1745351709683,5.7169182,1693.0,1692.9,0.525]
[1745351710165,0.30802451,1693.0,1692.9,0.525]
[1745351710365,11.31452223,1693.3,1692.9,1.3025]
[1745351710563,5.7168696,1693.3,1692.9,0.525]
[1745351711162,5.7168696,1693.3,1693.0,0.7775]
[1745351711687,5.7168696,1693.3,1693.0,0.83656015]
[1745351711888,5.7168696,1693.3,1693.0,0.7775]
[1745351712650,6.4913696,1693.3,1692.9,0.525]
[1745351712851,5.906137,1693.2,1693.0,5.344]
[1745351713288,5.90632567,1693.1,1693.0,5.344]
[1745351713502,11.31521936,1693.1,1693.0,5.344]
[1745351713854,11.31521936,1693.1,1692.9,5.344]
[1745351713855,6.68138256,1693.0,1692.9,5.344]
[1745351714360,5.90771108,1692.8,1692.2,0.7602]
[1745351714560,5.90786415,1692.7,1692.3,5.344]
[1745351714763,17.22414325,1692.8,1692.4,0.5344]
[1745351714988,11.31647342,1692.8,1692.4,0.5344]
[1745351715458,5.90774122,1692.7,1692.4,0.5344]
[1745351715888,5.90809205,1692.6,1692.4,0.5344]
[1745351716190,5.90809205,1692.6,1692.2,20.2262]
[1745351716490,5.90809205,1692.6,1692.3,5.345]
[1745351717990,11.31644635,1692.8,1692.3,5.345]
[1745351718381,5.40889369,1692.8,1692.3,5.345]
[1745351718553,5.40889369,1692.8,1692.4,0.5345]
[1745351718760,5.40889369,1692.8,1692.5,0.7602]
[1745351723111,11.31645087,1692.8,1692.5,0.7602]
[1745351723462,5.40889369,1692.8,1692.5,0.7602]
[1745351724798,5.90668072,1693.0,1692.5,0.7602]
[1745351724966,5.90711655,1692.9,1692.5,0.7602]
[1745351725161,5.90668072,1693.0,1692.5,0.81927811]
[1745351725399,11.81365783,1693.0,1692.5,0.81927811]
[1745351725583,11.81365783,1693.0,1692.5,0.7602]
[1745351725896,6.21475346,1693.0,1692.5,0.81927811]
[1745351726084,5.90702793,1692.9,1692.5,0.7602]
[1745351726485,5.90741419,1692.8,1692.5,0.7602]
[1745351727196,0.8096,1692.9,1692.5,0.7602]
[1745351727197,12.62400219,1692.9,1692.5,0.7602]
[1745351727559,6.71673561,1692.9,1692.5,0.7602]
[1745351727759,5.90746465,1692.8,1692.5,0.7602]
[1745351728468,12.62401318,1692.9,1692.5,0.7602]
[1745351728664,5.90739933,1692.8,1692.5,0.7602]
[1745351729168,11.81506092,1692.8,1692.5,0.7602]
[1745351729499,11.31629302,1692.8,1692.5,0.7602]
[1745351729884,5.40889369,1692.8,1692.5,0.7602]
[1745351730403,5.40889369,1692.8,1692.7,0.8224]
[1745351730599,0.30801207,1693.0,1692.7,6.1674]
[1745351730810,6.21491895,1693.0,1692.8,5.96174]
[1745351731005,6.21491895,1693.0,1692.8,5.345]
[1745351731178,6.21491895,1693.0,1692.7,0.8224]
[1745351731504,0.30801207,1693.0,1692.8,5.345]
[1745351731679,0.30801207,1693.0,1692.8,11.28869341]
[1745351732195,0.30801207,1693.0,1692.8,5.345]
[1745351732412,6.21481133,1693.0,1692.8,5.345]
[1745351733392,0.30801207,1693.0,1692.8,5.345]
[1745351733590,0.30801207,1693.0,1692.8,5.96174]
[1745351733792,5.40889369,1693.1,1692.8,11.90543341]
[1745351733996,5.40889369,1693.1,1692.9,0.8224]
[1745351734896,11.31537785,1693.1,1692.8,11.90543341]
[1745351735117,17.22197425,1693.1,1692.8,11.90543341]
[1745351735301,11.31537785,1693.1,1692.8,5.345]
[1745351736249,5.40889369,1693.1,1692.8,5.345]
[1745351736410,5.40889369,1693.1,1692.9,0.8224]
[1745351736614,0.30797376,1693.2,1692.9,0.8224]
[1745351736819,5.40889369,1693.4,1693.0,6.00275673]
[1745351737017,11.31421243,1693.4,1693.1,1.42267567]
[1745351737217,5.40889369,1693.4,1693.2,5.345]
[1745351738430,5.40889369,1693.4,1693.2,11.28869341]
[1745351741236,0.30794292,1693.5,1693.2,11.28869341]
[1745351741637,6.21298284,1693.5,1693.2,11.28869341]
[1745351741808,6.21298284,1693.5,1693.2,5.345]
[1745351742136,0.30794292,1693.5,1693.2,7.96856757]
[1745351745638,6.21300546,1693.5,1693.3,5.279]
[1745351745834,6.21300546,1693.5,1693.1,20.89067567]
[1745351745835,12.11819724,1693.5,1693.1,20.89067567]
[1745351746007,6.21300546,1693.5,1693.2,5.279]
[1745351747242,6.21300546,1693.5,1693.3,5.279]
[1745351748053,0.30794292,1693.5,1693.1,20.89067567]
[1745351748205,0.30794292,1693.5,1693.2,5.279]
[1745351748206,5.90581987,1693.3,1693.2,5.279]
[1745351748550,5.90597684,1693.2,1693.1,19.468]
[1745351748730,5.90597684,1693.2,1693.1,24.746]
[1745351750128,11.31487053,1693.2,1693.1,24.746]
[1745351751742,12.14447053,1693.2,1693.1,24.746]
[1745351752144,12.14447053,1693.2,1693.1,19.468]
[1745351752462,6.54645822,1693.2,1693.1,24.746]
[1745351752811,12.45243506,1693.2,1693.1,24.746]
[1745351754853,5.71685822,1693.2,1693.1,24.746]
[1745351755215,11.62283506,1693.2,1693.1,24.746]
[1745351755454,5.71685822,1693.2,1693.1,24.746]
[1745351756652,11.62283506,1693.2,1693.1,24.746]
[1745351756987,5.71685822,1693.2,1693.1,24.746]
[1745351757564,11.62283506,1693.2,1693.1,24.746]
[1745351758156,5.71685822,1693.2,1693.1,28.58106934]
[1745351761383,11.62283506,1693.2,1693.1,24.747]
[1745351761584,5.71685822,1693.2,1693.1,24.747]
[1745351761786,5.71685822,1693.2,1693.1,25.41169341]
[1745351761993,5.40889369,1693.2,1693.1,31.45679341]
[1745351763298,0.3079301,1693.6,1693.1,32.00679341]
[1745351763600,0.3079301,1693.6,1693.4,5.94369341]
[1745351763772,0.3079301,1693.6,1693.5,5.278]
[1745351765196,5.40889369,1693.9,1693.6,0.7661]
[1745351766794,5.40889369,1693.9,1693.6,6.70979341]
[1745351769828,0.3078783,1694.0,1693.6,6.70979341]
[1745351770033,0.3078783,1694.0,1693.7,0.67097934]
[1745351770330,5.40889369,1694.2,1693.9,0.7661]
[1745351770534,5.40889369,1694.2,1694.0,24.709]
[1745351772327,11.31153584,1694.2,1694.1,5.249]
[1745351772493,5.40889369,1694.2,1694.1,5.249]
[1745351772698,5.40889369,1694.2,1694.1,7.7199]
[1745351772926,0.30783348,1694.3,1694.1,7.7199]
[1745351775134,0.30783348,1694.3,1694.1,2.4709]
[1745351775434,0.30783348,1694.3,1694.2,5.248]
[1745351778626,0.30783348,1694.3,1694.2,6.0324]
[1745351778804,0.30783348,1694.3,1694.2,6.88273]
[1745351779317,5.40889369,1694.5,1694.2,12.82642341]
[1745351779925,5.40889369,1694.5,1694.2,7.57842341]
[1745351780227,5.40889369,1694.5,1694.3,5.247]
[1745351780527,5.40889369,1694.5,1694.4,0.5247]
[1745351780729,12.01541805,1694.7,1694.4,0.5247]
[1745351780903,12.01555843,1694.7,1694.5,5.247]
[1745351781225,5.9010976,1694.6,1694.5,5.247]
[1745351781441,17.91656828,1694.7,1694.5,5.247]
[1745351781624,12.01555843,1694.7,1694.5,5.247]
[1745351782129,6.11465086,1694.7,1694.5,5.247]
[1745351782438,6.11465086,1694.7,1694.5,5.7717]
[1745351784932,6.11465086,1694.7,1694.5,6.5561]
[1745351786536,6.11465086,1694.7,1694.5,26.0081]
[1745351786902,6.11465086,1694.7,1694.5,20.7611]
[1745351787138,6.11465086,1694.7,1694.6,5.247]
[1745351787335,6.11465086,1694.7,1694.5,19.9767]
[1745351787540,6.11465086,1694.7,1694.6,5.247]
[1745351787909,6.11465086,1694.7,1694.6,2.52237]
[1745351788235,6.11465086,1694.7,1694.6,7.76837]
[1745351790270,0.70575717,1694.7,1694.6,8.55277]
[1745351790472,0.3979811,1694.7,1694.6,8.55277]
[1745351790621,0.3979811,1694.7,1694.6,7.76837]
[1745351791178,0.3979811,1694.7,1694.6,2.52237]
[1745351791354,0.3979811,1694.7,1694.6,5.246]
[1745351792265,0.3979811,1694.7,1694.6,6.5804]
[1745351792472,0.3979811,1694.7,1694.6,11.97409341]
[1745351796160,0.3979811,1694.7,1694.6,6.72809341]
[1745351796388,0.3979811,1694.7,1694.6,14.64457275]
[1745351796768,0.3979811,1694.7,1694.6,18.78468251]
[1745351797980,12.11455258,1695.7,1695.1,0.7844]
[1745351798298,0.3075748,1695.6,1695.2,5.245]
[1745351798601,5.89801098,1695.5,1695.3,0.5245]
[1745351798802,6.20531355,1695.6,1695.4,5.245]
[1745351799168,0.3075748,1695.6,1695.4,5.245]
[1745351799369,6.20522708,1695.6,1695.4,5.245]
[1745351799583,0.3075748,1695.6,1695.4,5.245]
[1745351800085,6.20537215,1695.6,1695.4,5.245]
[1745351800799,6.20520957,1695.6,1695.4,5.245]
[1745351801007,12.60218564,1695.5,1695.1,0.7844]
[1745351801301,6.70389275,1695.5,1695.2,5.291]
[1745351801500,5.89844603,1695.4,1695.2,5.291]
[1745351801818,5.8987856,1695.3,1695.0,5.94369341]
[1745351801989,5.89875824,1695.3,1695.1,5.291]
[1745351802622,5.89844603,1695.4,1695.1,5.291]
[1745351802924,5.89870659,1695.3,1695.1,5.291]
[1745351803217,7.69956771,1695.4,1695.1,5.291]
[1745351803723,13.59814934,1695.4,1695.1,5.291]
[1745351804102,7.69956771,1695.4,1695.1,5.291]
[1745351805091,1.80112168,1695.4,1695.1,5.291]
[1745351805290,5.89834057,1695.4,1695.1,5.291]
[1745351805691,11.30723426,1695.4,1695.1,5.291]
[1745351806337,5.40889369,1695.4,1695.2,0.7717]
[1745351807604,0.7908,1696.2,1695.4,0.7717]
[1745351807808,5.89667314,1695.9,1695.5,30.67569341]
[1745351808031,6.20421685,1695.9,1695.5,30.67569341]
[1745351808227,0.30754371,1695.9,1695.5,33.82043275]
[1745351809141,5.89692782,1695.8,1695.5,33.82043275]
[1745351809309,6.20427573,1695.9,1695.5,33.82043275]
[1745351809704,0.30754371,1695.9,1695.7,5.94369341]
[1745351809935,5.40889369,1696.1,1695.8,1.36606934]
[1745351810118,5.40889369,1696.1,1695.9,5.289]
[1745351811309,5.40889369,1696.1,1695.9,11.23269341]
[1745351811518,0.30749127,1696.3,1695.9,11.23269341]
[1745351811735,0.3979811,1696.4,1696.1,6.71539341]
[1745351812060,0.3979811,1696.4,1696.3,6.71539341]
[1745351812264,0.3979811,1696.4,1696.3,12.00439341]
[1745351812544,0.3979811,1696.4,1696.3,12.55439341]
[1745351812756,0.3979811,1696.4,1696.3,16.14391177]
[1745351812908,5.40889369,1697.1,1696.5,0.58944462]
[1745351813111,5.40889369,1697.1,1697.0,0.7717]
[1745351813340,0.30728803,1697.3,1697.0,1.44323934]
[1745351813646,0.30728803,1697.3,1697.1,11.23269341]
[1745351813825,5.40889369,1697.6,1697.1,11.23269341]
[1745351814121,11.60703039,1697.6,1697.1,5.94369341]
[1745351814307,0.7908,1697.5,1696.6,3.7717]
[1745351814507,5.89193753,1697.3,1696.7,11.23269341]
[1745351814746,11.30039033,1697.4,1696.8,0.7717]
[1745351815044,5.40889369,1697.4,1697.1,5.94369341]
[1745351815253,0.30724129,1697.6,1697.3,6.71539341]
[1745351815438,0.30724129,1697.6,1697.4,5.287]
[1745351815622,11.29840447,1698.0,1696.9,3.0]
[1745351815623,0.7908,1697.9,1697.2,19.431]
[1745351815818,5.89059635,1697.7,1697.3,5.287]
[1745351816049,5.89069004,1697.6,1697.4,5.287]
[1745351816965,11.7816607,1697.6,1697.4,5.287]
[1745351817166,5.89069004,1697.6,1697.4,5.287]
[1745351817350,12.99051874,1697.6,1697.4,5.287]
[1745351817650,5.8910162,1697.5,1697.4,5.287]
[1745351817821,5.8910162,1697.5,1697.2,19.431]
[1745351817822,5.89150664,1697.4,1697.2,19.431]
[1745351818016,5.89171036,1697.3,1697.2,19.431]
[1745351818218,7.07003206,1697.3,1697.2,24.717]
[1745351819358,5.89252237,1697.1,1696.8,0.8132]
[1745351819517,5.89252237,1697.1,1696.9,24.712]
[1745351820022,5.89275191,1697.0,1696.9,19.426]
[1745351820216,5.89275191,1697.0,1696.9,24.712]
[1745351820460,5.8926295,1697.1,1696.9,24.712]
[1745351821155,5.40889369,1697.2,1696.9,24.712]
[1745351821321,5.89252183,1697.1,1696.9,24.712]
[1745351822654,11.3011168,1697.2,1696.9,24.712]
[1745351822962,5.40889369,1697.2,1696.9,30.65569341]
[1745351823163,5.40889369,1697.2,1697.1,5.94369341]
[1745351823351,11.30041663,1697.4,1697.1,5.94369341]
[1745351824022,11.30041663,1697.4,1697.0,0.8132]
[1745351824555,6.6506575,1697.2,1697.1,5.285]
[1745351825256,5.89275191,1697.0,1696.9,19.426]
[1745351825556,5.89275191,1697.0,1696.9,24.711]
[1745351825758,11.30145571,1697.1,1696.5,0.8132]
[1745351825759,11.78669914,1696.9,1696.5,0.8132]
[1745351826059,5.89330301,1696.9,1696.6,5.285]
[1745351826719,11.78665823,1696.9,1696.6,5.285]
[1745351826922,5.89350789,1696.8,1696.6,5.285]
[1745351827150,5.89325953,1696.9,1696.6,5.285]
[1745351827744,5.89292706,1697.0,1696.6,5.285]
[1745351828064,5.89292706,1697.0,1696.7,5.285]
[1745351828242,5.89321543,1696.9,1696.7,5.285]
[1745351828565,11.78593195,1697.0,1696.7,5.285]
[1745351828767,11.785962,1697.0,1696.7,5.285]
[1745351828937,11.78598215,1697.0,1696.7,5.285]
[1745351829144,5.89293039,1697.0,1696.7,5.285]
[1745351829967,5.89328801,1696.9,1696.7,5.285]
[1745351830173,5.89390587,1696.7,1696.5,19.423]
[1745351830478,11.30279956,1696.7,1696.6,5.398]
[1745351830968,5.40889369,1696.7,1696.6,5.398]
[1745351831533,11.30268752,1696.7,1696.6,5.398]
[1745351832050,5.40889369,1696.7,1696.6,7.8801]
[1745351832250,5.40889369,1696.7,1696.6,8.6628]
[1745351832452,6.64595957,1697.1,1696.6,14.60649341]
[1745351832734,6.95326632,1697.1,1696.6,14.60649341]
[1745351833171,5.89286791,1697.0,1696.6,14.60649341]
[1745351833373,5.89323248,1696.9,1696.6,8.6628]
[1745351834078,5.89355403,1696.8,1696.7,5.398]
[1745351834247,5.89414122,1696.6,1696.5,19.423]
[1745351834775,6.64744122,1696.6,1696.5,19.423]
[1745351834967,8.44246678,1696.6,1696.5,24.821]
[1745351835355,0.7533,1696.6,1696.5,24.821]
[1745351835555,6.64744122,1696.6,1696.5,24.821]
[1745351836072,6.64663755,1696.9,1696.5,24.821]
[1745351836289,12.53998128,1696.9,1696.5,24.821]
[1745351836643,5.89360226,1696.8,1696.5,19.423]
[1745351836989,5.89383491,1696.7,1696.6,5.398]
[1745351837474,5.89379383,1696.7,1696.6,5.398]
[1745351838547,5.89360226,1696.8,1696.6,5.398]
[1745351838748,5.89379383,1696.7,1696.6,5.398]
[1745351839466,11.78788227,1696.7,1696.5,19.423]
[1745351839654,5.89379383,1696.7,1696.6,5.398]
[1745351840291,5.89379383,1696.7,1696.5,19.423]
[1745351840292,5.89414122,1696.6,1696.5,19.423]
[1745351840477,6.65174122,1696.6,1696.5,24.821]
[1745351840973,6.65174122,1696.6,1696.5,19.423]
[1745351841172,6.65174122,1696.6,1696.5,24.821]
[1745351842185,5.89414122,1696.6,1696.5,24.821]
[1745351842368,5.89379383,1696.7,1696.5,24.821]
[1745351842567,11.78784194,1696.7,1696.5,24.821]
[1745351843177,5.89414122,1696.6,1696.5,24.821]
[1745351843695,11.78786674,1696.7,1696.5,24.821]
[1745351843974,5.89379383,1696.7,1696.5,24.821]
[1745351844141,5.89414122,1696.6,1696.5,24.821]
[1745351844346,5.89414122,1696.6,1696.5,19.423]
[1745351844560,5.89414122,1696.6,1696.5,24.821]
[1745351844783,5.89414122,1696.6,1696.5,19.423]
[1745351845078,5.89414122,1696.6,1696.5,24.821]
[1745351847278,7.07293473,1696.6,1696.5,19.423]
[1745351847484,7.07293473,1696.6,1696.5,24.821]
[1745351847989,7.38030622,1696.6,1696.5,24.822]
[1745351848488,6.20151271,1696.6,1696.5,24.822]
[1745351849482,0.30737149,1696.6,1696.5,24.822]
[1745351851387,6.20151271,1696.6,1696.5,24.822]
[1745351853605,6.20151271,1696.6,1696.5,19.423]
[1745351853814,6.20151271,1696.6,1696.5,24.822]
[1745351854401,0.30737149,1696.6,1696.5,24.822]
[1745351854893,6.20151271,1696.6,1696.5,19.423]
[1745351855101,6.20151271,1696.6,1696.5,24.822]
[1745351857192,0.30737149,1696.6,1696.5,24.822]
[1745351857404,0.30737149,1696.6,1696.5,27.3042]
[1745351858610,6.20151271,1696.6,1696.5,27.3042]
[1745351858780,6.20151271,1696.6,1696.5,24.822]
[1745351861090,6.97331271,1696.6,1696.5,24.768]
[1745351861587,6.97331271,1696.6,1696.5,19.423]
[1745351861818,6.97331271,1696.6,1696.5,24.768]
[1745351862523,5.89534649,1696.3,1696.2,5.345]
[1745351862689,6.66714649,1696.3,1696.2,5.345]
[1745351863299,6.66714649,1696.3,1695.8,19.426]
[1745351863300,5.89657409,1695.9,1695.8,19.426]
[1745351863499,6.66806285,1696.0,1695.8,24.771]
[1745351863784,5.89657409,1695.9,1695.8,24.771]
[1745351864222,6.66806285,1696.0,1695.8,24.771]
[1745351864394,5.89622989,1696.0,1695.8,25.5434]
[1745351864591,5.89622989,1696.0,1695.9,2.55434]
[1745351864794,5.89622989,1696.0,1695.8,25.5434]
[1745351865602,5.89657409,1695.9,1695.8,24.771]
[1745351867429,5.89657409,1695.9,1695.8,19.426]
[1745351867727,6.66837409,1695.9,1695.8,24.771]
[1745351868226,6.66837409,1695.9,1695.5,6.69719476]
[1745351868227,5.89698046,1695.8,1695.5,6.69719476]
[1745351868532,5.8974282,1695.7,1695.6,6.01471948]
[1745351868692,5.89698046,1695.8,1695.6,5.345]
[1745351869227,11.79419444,1695.8,1695.6,5.345]
[1745351869423,5.89698046,1695.8,1695.7,5.346]
[1745351871728,11.30583592,1695.8,1695.3,19.429]
[1745351871907,11.30583592,1695.8,1695.6,5.346]
[1745351871908,7.25876761,1695.7,1695.6,5.346]
[1745351873501,5.89809233,1695.5,1695.3,19.429]
[1745351873694,5.89809233,1695.5,1695.4,5.346]
[1745351873897,5.89831308,1695.4,1695.3,19.429]
[1745351874097,5.89831308,1695.4,1695.3,24.775]
[1745351874634,5.89777393,1695.6,1695.3,27.92221948]
[1745351874835,5.89777393,1695.6,1695.4,5.92479476]
[1745351875132,11.79568513,1695.6,1695.4,5.92479476]
[1745351875831,5.8979652,1695.5,1695.4,5.92479476]
[1745351876830,5.8979652,1695.5,1695.3,24.775]
[1745351877032,5.89831308,1695.4,1695.3,24.775]
[1745351877402,5.8979652,1695.5,1695.3,19.429]
[1745351877600,5.8979652,1695.5,1695.4,5.347]
[1745351878004,5.8979652,1695.5,1695.3,19.429]
[1745351878005,5.89831308,1695.4,1695.3,19.429]
[1745351878223,5.89831308,1695.4,1695.3,24.776]
[1745351878629,6.20587439,1695.4,1695.3,24.776]
[1745351879344,0.30756131,1695.4,1695.3,31.51709476]
[1745351879549,0.30756131,1695.4,1695.3,34.66880424]
[1745351880601,5.89780212,1695.6,1695.3,34.66880424]
[1745351880941,11.79569493,1695.6,1695.3,31.51709476]
[1745351881125,0.30754891,1695.5,1695.3,31.51709476]
[1745351881436,6.2055302,1695.5,1695.3,26.17009476]
[1745351881632,0.30754891,1695.5,1695.4,5.347]
[1745351882338,11.30603388,1695.8,1695.4,5.347]
[1745351882540,0.30752783,1695.7,1695.5,5.92479476]
[1745351883105,0.30752783,1695.7,1695.6,0.8163]
[1745351883734,12.10232937,1695.7,1695.5,5.92479476]
[1745351883944,6.20479739,1695.7,1695.5,5.92479476]
[1745351884138,6.20480476,1695.7,1695.5,5.92479476]
[1745351884440,0.30752783,1695.7,1695.5,7.44877518]
[1745351885500,0.30752783,1695.7,1695.5,5.92479476]
[1745351885501,6.20501213,1695.7,1695.5,5.92479476]
[1745351885750,5.89775776,1695.6,1695.4,6.1633]
[1745351886238,5.8979652,1695.5,1695.4,5.347]
[1745351887437,5.89777915,1695.6,1695.4,5.347]
[1745351887643,5.8979652,1695.5,1695.3,19.429]
[1745351887948,5.8979652,1695.5,1695.4,5.347]
[1745351891744,5.8979652,1695.5,1695.3,19.429]
[1745351891944,5.89783637,1695.6,1695.4,5.267]
[1745351892256,5.89768831,1695.6,1695.4,11.19179476]
[1745351892861,5.8979652,1695.5,1695.4,5.267]
[1745351894128,5.8979652,1695.5,1695.3,25.35379476]
[1745351894329,5.8979652,1695.5,1695.4,5.267]
[1745351895955,5.89778571,1695.6,1695.4,5.267]
[1745351896251,5.89778571,1695.6,1695.5,5.92479476]
[1745351897135,5.71642152,1695.7,1695.5,7.04397424]
[1745351898983,0.30752783,1695.7,1695.5,7.04397424]